Cogmind - Beta 16 @@@ ROGUE MODE // 2025.10.22 @ 22:10:06 Player: Visionary Result: Destroyed by LH-BAZ(R) with Subdweller Machine Gun Performance ------------- Evolutions (0) 0 Regions Visited (2) 400 Robots Destroyed (9) 45 Value Destroyed (281) 281 Prototype IDs (0) 0 Alien Tech Used (0) 0 Bonus (0) 0 TOTAL SCORE: 726 Bonus ------- None Cogmind --------- Core Integrity 0/250 Matter 133/300 Energy 97/100 System Corruption 0% Temperature Cool (0) Movement Rolling (130) Ox2 Location -10/Subcaves Parts ------- > --- POWER (1) -------- (None) > --- PROPULSION (2) --- Aluminum Leg Subdweller Monowheel > --- UTILITY (2) ------ High-capacity Storage Unit Visual Processing Unit > --- WEAPON (2) ------- Light Assault Rifle Light Cannon > --- INVENTORY (20) --- Ion Engine Hover Unit Small Storage Unit Large Matter Pod (0) High-capacity Matter Pod (0) Subdweller Optics Medium Laser Assault Rifle Scrap Shield Fragment (46) Scrap Shield Fragment (45) Scrap Shield Fragment (45) Scrap Shield Fragment (39) Peak State ------------ > --- POWER ------------ (None) > --- PROPULSION ------- Aluminum Leg Subdweller Monowheel > --- UTILITY ---------- High-capacity Storage Unit Visual Processing Unit > --- WEAPON ----------- Light Assault Rifle Light Cannon > --- INVENTORY -------- Ion Engine Hover Unit Small Storage Unit Large Matter Pod High-capacity Matter Pod Subdweller Optics Medium Laser Assault Rifle Scrap Shield Fragment [Rating: 9] Favorites ----------- Power Light Ion Engine Engine Light Ion Engine Propulsion Aluminum Leg Leg Aluminum Leg Wheel Subdweller Monowheel Hover Unit Hover Unit Utility High-capacity Storage Unit Storage High-capacity Storage Unit Processor Visual Processing Unit Weapon Assault Rifle Ballistic Gun Assault Rifle Ballistic Cannon Light Cannon Build | -11 -10 -10 ------- Run | Yrd Mat Sub Slots Evolved . | . . . Power . | . . . Propulsion . | . . . Utility . | . . . Weapon . | . . . Parts Attached 12 | 4 7 1 Power 1 | 1 . . Engine 1 | 1 . . Core . | . . . Reactor . | . . . Propulsion 4 | 2 1 1 Treads . | . . . Leg 2 | 2 . . Wheel 1 | . . 1 Hover 1 | . 1 . Flight . | . . . Utility 3 | 1 2 . Device . | . . . Storage 2 | 1 1 . Processor 1 | . 1 . Hackware . | . . . Protection . | . . . Artifact . | . . . Weapon 4 | . 4 . Energy Gun . | . . . Energy Cannon . | . . . Ballistic Gun 3 | . 3 . Ballistic Cannon 1 | . 1 . Launcher . | . . . Special Weapon . | . . . Impact Weapon . | . . . Slashing Weapon . | . . . Piercing Weapon . | . . . Special Melee Weapon . | . . . Unidentified Prototypes . | . . . Parts Lost 3 | . 3 . Power 1 | . 1 . Propulsion 1 | . 1 . Utility . | . . . Weapon 1 | . 1 . Highest Loss Streak 3 | . 3 . To Critical Strikes . | . . . Average Backups 4 | 3 3 7 Power . | . 1 1 Propulsion . | . . 1 Utility 1 | . 1 3 Weapon 1 | 2 . 2 Tool/Special . | . . . Unused Backups 4 | . . 4 Power 1 | . . 1 Propulsion . | . . . Utility 2 | . . 2 Weapon 1 | . . 1 Tool/Special . | . . . Average Slot Usage (%) 72 | . 71 76 Engine 2 | . 3 . Leg 16 | . 17 14 Wheel 1 | . . 5 Storage 14 | . 14 14 Processor 9 | . 7 14 Ballistic Gun 23 | . 26 14 Ballistic Cannon 4 | . . 14 Peak Build Rating 9 | 4 6 9 Average Rating 5 | 2 5 7 On Entrance 3 | . 4 6 Avg Prop Armor Cover (%) 10 | . . 10 Naked Turns . | . . . Heaviest Build 47 | 8 47 44 Greatest Support 20 | 20 20 20 Greatest Overweight (x) 4 | . 4 4 Average Overweight (x) 2 | . 3 2 Largest Inventory Capacity 20 | 8 20 20 Average Capacity 19 | 7 19 20 Most Carried 12 | 5 7 12 Average Carried 4 | 3 3 8 Final Capacity 20 | 8 20 20 Final Carried 12 | 4 7 12 Class Distribution -------------------- 100% | Mutant Dominant Class ---------------- Mutant | -10/Materials Mutant | -10/Subcaves Resources | -11 -10 -10 ----------- Run | Yrd Mat Sub Matter Collected 385 | 193 163 29 Remotely . | . . . Salvage Created 293 | . 270 23 Parts 17 | . 13 4 Haulers Intercepted . | . . . Recyclers Shooed . | . . . Parts Field Recycled . | . . . Retrieved Matter . | . . . Parts Self-Destructed 1 | . . 1 Prevented . | . . . Parts Restored . | . . . Kills | -11 -10 -10 ------- Run | Yrd Mat Sub Combat Hostiles Destroyed 6 | . 5 1 Guns 5 | . 5 . Cannons 1 | . . 1 Classes Destroyed 3 | . 2 1 Watcher 3 | . 3 . Grunt 5 | . 5 . Subdweller 1 | . . 1 Best Kill Streak 2 | . 2 1 Combat Bots Only 2 | . 2 1 Max Kills in Single Turn 1 | . 1 1 Gunslinging . | . . . Exploded . | . . . Melee . | . . . Uniques/NPCs Destroyed . | . . . Combat | -11 -10 -10 -------- Run | Yrd Mat Sub Hostile Shots Fired 69 | . 58 11 Missed 20 | . 17 3 Hits 49 | . 41 8 Projectile 49 | . 41 8 AOE 2 | . 2 . Damage Taken 795 | . 641 154 Core 253 | . 172 81 Absorbed by Shields . | . . . Core Remaining (%) 100 | 100 . . Volleys Fired 50 | . 40 10 Largest 2 | . 2 2 Hottest 50 | . 40 50 Shots Fired 97 | . 77 20 Gun 87 | . 77 10 Cannon 10 | . . 10 Launcher . | . . . Special . | . . . Kinetic 97 | . 77 20 Thermal . | . . . Explosive . | . . . Electromagnetic . | . . . Robot Hit Streak 6 | . 5 6 Robot Miss Streak 4 | . 4 1 Penetration Max . | . . . Secondary Targets . | . . . Shots Hit Robots 57 | . 43 14 Core Hits 18 | . 16 2 Critical Kills . | . . . Critical Parts Destroyed . | . . . Critical Strikes . | . . . Melee Attacks . | . . . Impact . | . . . Slashing . | . . . Piercing . | . . . Sneak Attacks . | . . . Combat Hostiles . | . . . Follow-up Attacks . | . . . Damage Inflicted 745 | . 560 185 Guns 601 | . 560 41 Cannons 144 | . . 144 Explosions . | . . . Melee . | . . . Ramming . | . . . Kinetic 745 | . 560 185 Thermal . | . . . Explosive . | . . . Electromagnetic . | . . . Impact . | . . . Slashing . | . . . Piercing . | . . . Highest Corruption . | . . . Average Corruption . | . . . Corruption Purged . | . . . Corruption Blocked . | . . . Overload Shots . | . . . Overflow Damage . | . . . Projectiles . | . . . Explosions . | . . . Melee . | . . . Knockbacks . | . . . Impact . | . . . Kinetic . | . . . Secondary . | . . . Self-Inflicted Damage . | . . . Shots . | . . . Rammed . | . . . Targets Rammed 1 | . 1 . Kicked 1 | . 1 . Crushed . | . . . Highest Temperature 9 | . 9 . Average Temperature 4 | . 4 . Received Heat Transfer 264 | . 264 . Siege Activations . | . . . Martial Activations . | . . . Shielding Activations . | . . . Robots Disrupted . | . . . Combat Hostiles . | . . . Robots Corrupted . | . . . Combat Hostiles . | . . . Parts Fried . | . . . Impact Corruptions . | . . . Robots Melted . | . . . Combat Hostiles . | . . . Parts Melted . | . . . Heat Transferred . | . . . Parts Sabotaged . | . . . Parts Stolen . | . . . Parts Stripped . | . . . Power Chain Reactions . | . . . Alert | -11 -10 -10 ------- Run | Yrd Mat Sub Maximum Alert Level . | . . . Low Security (%) 100 | 100 100 . Level 1 . | . . . Level 2 . | . . . Level 3 . | . . . Level 4 . | . . . Level 5 . | . . . High Security . | . . . Max Security . | . . . Peak Influence 96 | . 96 . Initial . | . . . Average 12 | . 12 . Influence Increases 177 | . 177 . Destroy 0b10 Robot/C 100 | . 100 . Destroy 0b10 Robot/NC 15 | . 15 . Destroy Leader 26 | . 26 . Successful Hack 4 | . 4 . Disable Machine 15 | . 15 . Destroy Structure 2 | . 2 . Lose Combat Pursuer 15 | . 15 . Influence Decreases 177 | . 177 . Time Decay 147 | . 147 . Lost Part 30 | . 30 . Squads Dispatched 1 | . 1 . Investigation . | . . . Extermination . | . . . Reinforcement 1 | . 1 . Assault . | . . . Garrison . | . . . Intercept . | . . . Searches Triggered . | . . . Construction Impeded . | . . . Haulers Reinforced . | . . . Active Scanning Responses . | . . . Cargo Convoy Interrupts . | . . . Stealth | -11 -10 -10 --------- Run | Yrd Mat Sub Distress Signals 3 | . 3 . Communications Jammed . | . . . Distress Signals . | . . . Times Spotted 13 | . 11 2 Peak Tracking Total 6 | . 6 1 Tactical Retreats 1 | . 1 . Traps | -11 -10 -10 ------- Run | Yrd Mat Sub Traps Triggered . | . . . Indirectly . | . . . Trap Hack Attempts . | . . . Triggered . | . . . Disarmed . | . . . Reprogrammed . | . . . Reused . | . . . Traps Extracted . | . . . Installed . | . . . Triggered . | . . . Machines | -11 -10 -10 ---------- Run | Yrd Mat Sub Machines Disabled 1 | . 1 . Max in Single Turn 1 | . 1 . Machines Repaired . | . . . Machines Dismantled . | . . . Machines Sabotaged . | . . . Overloaded Fab Kills . | . . . Hacking | -11 -10 -10 --------- Run | Yrd Mat Sub Machines Accessed 2 | . 2 . Terminals 2 | . 2 . Fabricators . | . . . Repair Stations . | . . . Recycling Units . | . . . Scanalyzers . | . . . Garrison Access . | . . . Total Hacks 7 | . 7 . Successful 5 | . 5 . Failed 2 | . 2 . Catastrophic . | . . . Database Lockouts . | . . . Manual . | . . . Terminals 7 | . 7 . Fabricators . | . . . Repair Stations . | . . . Recycling Units . | . . . Scanalyzers . | . . . Garrison Access . | . . . Terminal Hacks 5 | . 5 . Record 3 | . 3 . Alert Level 1 | . 1 . Locate Traps 1 | . 1 . Fabricator Hacks . | . . . Repair Station Hacks . | . . . Recycling Unit Hacks . | . . . Scanalyzer . | . . . Garrison Access Hacks . | . . . Unauthorized Hacks . | . . . Terminals . | . . . Fabricators . | . . . Repair Stations . | . . . Recycling Units . | . . . Scanalyzers . | . . . Garrison Access . | . . . Data Cores Recovered . | . . . Used . | . . . Hacking Detections 1 | . 1 . Full Trace Events . | . . . Feedback Events . | . . . Feedback Blocked . | . . . Robot Schematics Acquired . | . . . Robots Built . | . . . Authchips . | . . . Time . | . . . Total Robot Build Rating . | . . . Part Schematics Acquired . | . . . Parts Built . | . . . Authchips . | . . . Time . | . . . Total Part Build Rating . | . . . Part Studies Acquired . | . . . Parts Repaired . | . . . Time . | . . . Parts Recycled . | . . . Recycled Matter . | . . . Retrieved Matter . | . . . Retrieved Components . | . . . Parts Scanalyzed . | . . . Part Schematics Acquired . | . . . Parts Damaged . | . . . Bothacking | -11 -10 -10 ------------ Run | Yrd Mat Sub Used RIF Installer . | . . . Robots Hacked . | . . . Non-combat . | . . . Combat . | . . . Robot Hacks Applied . | . . . Relay Couplers Released . | . . . Fabnet Peak Effective % . | . . . Robots Rewired . | . . . Allies Hacked . | . . . Hacks Repelled . | . . . Allies | -11 -10 -10 -------- Run | Yrd Mat Sub Total Allies . | . . . Largest Group . | . . . Highest-Rated Group . | . . . Highest-Rated Ally . | . . . Total Orders . | . . . Ally Attacks . | . . . Total Damage . | . . . Kills . | . . . Allies Corrupted . | . . . Allies Melted . | . . . Intel | -11 -10 -10 ------- Run | Yrd Mat Sub Active Infowar (turns) 681 | . 416 265 Optics 681 | . 416 265 Robot Analysis Total . | . . . Derelict Logs Recovered 1 | . . 1 Drone Launches . | . . . Drone Recoveries . | . . . Exploration | -11 -10 -10 ------------- Run | Yrd Mat Sub Turns Passed 1091 | 43 783 265 Spaces Moved 311 | 36 184 91 Core 16 | 16 . . Treads . | . . . Legs 242 | 20 184 38 Wheels 53 | . . 53 Hover . | . . . Flight . | . . . Fastest Speed 50 | 50 120 130 Average Speed 289 | 88 351 242 Slowest Speed 400 | 120 400 400 Overloaded Moves . | . . . Propulsion Burnouts . | . . . Robots Hopped . | . . . Potential Cave-ins . | . . . Cave-ins Triggered . | . . . Exploration Rate (%) 15 | 3 36 8 Regions Visited 2 Branch Regions 1 Pre-discovered Areas . | . . . Known Exits Taken . | . . . Unknown Exits Taken 2 | 1 1 . Scrap Searched . | . . . Spaces Dug . | . . . Terrain Destroyed . | . . . Melee . | . . . Projectile . | . . . AOE . | . . . Terrain Rammed . | . . . Walls Destroyed . | . . . Machines Disabled . | . . . Actions | -11 -10 -10 --------- Run | Yrd Mat Sub Total 412 | 47 246 119 Wait 18 | . 7 11 Move 309 | 35 183 91 Hop . | . . . Pick Up 21 | 8 7 6 Fast Attach . | . . . Attach 10 | 4 5 1 Detach 1 | . 1 . Swap 2 | . 2 . Drop . | . . . Fire 50 | . 40 10 Melee . | . . . Ram . | . . . Kick 1 | . 1 . Crush . | . . . Escape Stasis . | . . . Rewire . | . . . Trap . | . . . Miscellaneous . | . . . Route ------- -11/Scrapyard -10/Materials -10/Subcaves History --------- Turn | Location | Event 7 | -11/Scrapyard | Discovered new exit (range 15) 44 | -11/Scrapyard | Entered Materials 254 | -10/Materials | Core integrity fell below 50% 284 | -10/Materials | Lost 3 parts (1p1n1w) 300 | -10/Materials | Build established: Mutant 683 | -10/Materials | Discovered new exit (range 5) 827 | -10/Materials | Entered Subcaves 1043 | -10/Subcaves | Learned 4 Materials zone layouts 1087 | -10/Subcaves | Core integrity fell below 20% 1092 | -10/Subcaves | Destroyed by LH-BAZ(R) with Subdweller Machine Gun Last Messages --------------- LOCATION=UNKNOWN AMBIENT_HEAT=-10 GOAL=ESCAPE P5-1EH(R) destroyed. Subatomizers dissect the Sub. Optics. Acquired Sub. Optics. Subatomizers dissect the Sub. Monowheel. Acquired Sub. Monowheel. Acquired Scrap Shield Fragment. Acquired 23 matter. Acquired Scrap Shield Fragment. Acquired 1 matter. Acquired 4 matter. Acquired derelict log, extracted data. Data stored: Materials zone layouts (x4). Remember there are three different ways to zoom the map: Scroll the mouse wheel while panning the map with Shift, or toggle via 'z' or the ZOOM button over the map. LH-BAZ(R): "OHNO!" Map ----- +----------------------------------------------------+ | ?????????????????????????????????????????????????? | | ?????????????????????????????????????????????????? | | ?????????????????????????????????????????????????? | | ????????????????????###??????????????????????????? | | ???????????????????? #?????????????????????????? | | ????????????????????? #?????????????#??????????? | | ????????????????????? #??????????? #??????????? | | ?????????????????????# ????????? % ?????????? | | ???????????????????### ???????? ??????????? | | ???????????????????# #??????? ????????????? | | ???????????????????? #?????? #?????????????? | | ????????????????????? #????? #??????????????? | | ?????????????????????? ####? #### ????????? | | ??????????????????????# # ???????????? | | ??????????????????????# ???????????????? | | ??????????????????????# ???????????????????? | | ??????????????????????# % ####???????????????????? | | ??????????????????????# R #???????????????????? | | ??????????????????????## #???????????????????? | | ???????????????????????## #???????????????????? | | ???????????????????????# ##???????????????????? | | ???????????????????????## ##????????????????????? | | ???????????????????????# #????????????????????? | | ???????????????????????# ##????????????????????? | | ???????????????????????# ##????????????????????? | | ???????????????????????# @ ##???????????????????? | | ??????????????????????## ###?????????????????? | | ????????????????####?## ##????????????????? | | ???????????????## ### #????????????????? | | ????????????##?# ### ## #????????????????? | | #?????????## ##"" ##??##?# #????????????????? | | ##???????? ##" ## ##?????? #???????????????? | | ##???????? " "### ##?????? #???????????????? | | ##??????? ""### #???????#???????????????? | | #?????? ##### " #???????????????????????? | | ##??##### #????# " #???????????????????????? | | #?## ### #?????# " #???????????????????????? | | ##?# # ####### " ###?????????????????????? | | #### ## ## " #?????????????????????? | | ## "" " #?????????????????????? | | # ##" ??????????????????? | | # ### "" ????????????????? | | # ## ## ###?# "" " #????????????????? | | # ### #####??# """" ""#"# #????????????????? | | ###?# #??????# """ "" #????????????????? | | ????# ??????### "" "" ##????????????????? | | ???? #???????# "" # ####?????????????????? | | ??? ##???????# ### ##????????????????????? | | ??? #???????? ##?? #?????????????????????? | | ??# #???????? ##??????????????????????????? | +----------------------------------------------------+ Best States ------------- Heat Dissipation 25 Energy Generation 10 Energy Capacity 125 Matter Stores 233 Matter Capacity 300 Sight Range 18 Terrain Scan Density 10 Evasion (%) 55 Item Schematics ----------------- None Robot Schematics ------------------ None Fabricated ------------ Nothing Repaired ---------- Nothing Studied --------- None Alien Tech Used ----------------- None Achievements -------------- Spot Them First Challenges ------------ None Game ------ Seed DecoderHelicalPick Manual? 0 Play Time 00:12:46 Cumulative 1.5 hours Start 2025.10.22 @ 21:59:51 End 2025.10.22 @ 22:10:06 Sessions 1 Manual Loads 0 Difficulty Rogue Special Mode None Game No. 5 Rogue 5 Adventurer 0 Explorer 0 Win Type - Total 0 Types 0/0/0/0/0/0/0/0/0/0 Lore% 1 Gallery% 3 Achievement% 3 Wizard Run 0 Options --------- Layout 1 ASCII 0 Keyboard 0 Movement Numpad Keybinds 0 Fullscreen 1 Font 24/Smallcaps Map View 50x35 Zoom Use 0% Tactical HUD 0 Map Filters NONE Filters NONE Steam 1 RUN: 07745cf1-49d5-4b09-8f43-753eb29c6175